bitfinex/quotes_BTCUSD_20211001
["timestamp","ask_amount","ask_price","bid_price","bid_amount"]
[1633072649874,3.96581295,44164.0,44163.0,2.64048019]
[1633072650079,3.51297095,44164.0,44163.0,1.32877789]
[1633072650475,0.00490381,44175.0,44168.0,0.22642]
[1633072650678,0.00490381,44175.0,44170.0,0.999]
[1633072650874,0.00546,44176.0,44174.0,0.00826854]
[1633072650875,0.0004,44176.0,44174.0,0.00826854]
[1633072651075,0.22326,44184.0,44169.0,0.01492203]
[1633072651076,1.15,44178.0,44169.0,0.01492203]
[1633072651272,1.15,44178.0,44163.0,0.2737605]
[1633072651273,0.22076442,44171.0,44170.0,0.999]
[1633072651474,0.41711168,44178.0,44170.0,1.21348221]
[1633072651671,0.0404,44189.0,44177.0,0.9988]
[1633072651872,0.23708092,44187.0,44179.0,0.0012371]
[1633072652075,0.05172006,44180.0,44171.0,0.1]
[1633072652270,0.05172006,44180.0,44173.0,0.00701574]
[1633072652271,0.22173886,44179.0,44173.0,0.00701574]
[1633072652477,0.22173886,44179.0,44165.0,0.966428]
[1633072652478,0.48616536,44165.0,44151.0,0.1]
[1633072652676,0.48616536,44165.0,44147.0,0.10351905]
[1633072652677,0.06024276,44160.0,44147.0,0.10351905]
[1633072652875,0.06024276,44160.0,44158.0,0.07934313]
[1633072652876,0.0360757,44159.0,44158.0,0.07934313]
[1633072653075,0.48616536,44165.0,44158.0,0.23520892]
[1633072653275,0.49657281,44164.0,44160.0,0.04901304]
[1633072653471,0.49657281,44164.0,44157.0,0.04321887]
[1633072653472,0.18427709,44163.0,44157.0,0.04321887]
[1633072653672,0.18427709,44163.0,44157.0,0.0557833]
[1633072653673,0.01598958,44161.0,44157.0,0.0557833]
[1633072653871,0.228645,44160.0,44158.0,0.037]
[1633072654072,0.00598958,44161.0,44158.0,0.04438614]
[1633072654275,0.90637609,44159.0,44158.0,0.037]
[1633072654473,0.25637609,44159.0,44158.0,0.037]
[1633072654875,0.3549977,44159.0,44158.0,0.037]
[1633072655073,0.25637609,44159.0,44158.0,0.0368]
[1633072655271,0.25335675,44159.0,44154.0,0.00751874]
[1633072655472,0.228645,44158.0,44154.0,0.00751874]
[1633072655681,0.228645,44158.0,44133.0,0.02]
[1633072655682,1.10014534,44138.0,44133.0,0.02]
[1633072655883,0.06522182,44136.0,44124.0,0.00524293]
[1633072656087,0.09753175,44130.0,44124.0,0.04148652]
[1633072656277,0.14778717,44130.0,44124.0,0.04148652]
[1633072656474,0.48960544,44129.0,44125.0,0.07493868]
[1633072656673,0.02647175,44128.0,44124.0,0.04148652]
[1633072656873,0.02647175,44128.0,44124.0,0.04274993]
[1633072657275,0.01829746,44128.0,44127.0,0.55126242]
[1633072657476,1.10014534,44138.0,44130.0,0.226587]
[1633072657677,1.10014534,44138.0,44134.0,0.03527116]
[1633072657876,0.0002,44146.0,44137.0,0.7]
[1633072658077,0.00751874,44154.0,44143.0,0.00122094]
[1633072658280,0.00751874,44154.0,44149.0,0.16411439]
[1633072658481,1.874e-05,44154.0,44150.0,0.19897076]
[1633072658676,1.874e-05,44154.0,44152.0,0.01460002]
[1633072658875,0.48616536,44165.0,44153.0,0.24923988]
[1633072659075,0.48616536,44165.0,44160.0,0.00120295]
[1633072659275,0.00848918,44163.0,44154.0,0.26113986]
[1633072659472,0.00848918,44163.0,44155.0,0.14647758]
[1633072659674,0.00348918,44163.0,44156.0,0.19919964]
[1633072659877,0.48616536,44165.0,44159.0,0.09394538]
[1633072660074,0.48616536,44165.0,44160.0,0.01616738]
[1633072660276,0.48616536,44165.0,44156.0,0.07501]
[1633072660474,0.48616536,44165.0,44151.0,0.037049]
[1633072660475,0.48616536,44165.0,44151.0,0.29016562]
[1633072660671,0.48616536,44165.0,44151.0,0.037049]
[1633072660873,0.48616536,44165.0,44152.0,0.00598656]
[1633072660874,0.00127417,44159.0,44152.0,0.00598656]
[1633072661075,0.48616536,44165.0,44162.0,1.8777665]
[1633072661275,0.48616536,44165.0,44154.0,0.04897117]
[1633072661473,0.48616536,44165.0,44158.0,0.17918145]
[1633072661672,0.48616536,44165.0,44159.0,0.0144094]
[1633072661872,0.48616536,44165.0,44155.0,0.00632902]
[1633072661873,0.223623,44164.0,44156.0,0.04034039]
[1633072662075,0.223623,44164.0,44156.0,0.03637261]
[1633072662076,0.213623,44164.0,44156.0,0.03637261]
[1633072662273,0.213623,44164.0,44157.0,0.01446537]
[1633072662472,0.213623,44164.0,44156.0,0.03637261]
[1633072662473,0.0012817,44161.0,44156.0,0.03990114]
[1633072662731,0.0001563,44163.0,44159.0,0.17991536]
[1633072662881,0.0001563,44163.0,44162.0,0.60103033]
[1633072663084,0.00129687,44173.0,44162.0,0.60103033]
[1633072663085,0.02891656,44180.0,44173.0,0.00129414]
[1633072663289,0.02891656,44180.0,44179.0,0.00869303]
[1633072663578,0.02135498,44188.0,44179.0,0.4406649]
[1633072663579,1.656e-05,44181.0,44179.0,0.4406649]
[1633072663776,1.656e-05,44181.0,44180.0,0.05518285]
[1633072663980,0.40720209,44181.0,44179.0,0.25004008]
[1633072664177,0.01041025,44180.0,44179.0,0.041]
[1633072664391,0.12,44186.0,44179.0,0.041]
[1633072664392,1.6085757,44200.0,44189.0,0.18681498]
[1633072664591,0.005,44210.0,44209.0,0.029868]
[1633072664592,0.0046,44210.0,44209.0,0.029868]
[1633072664791,0.0046,44210.0,44209.0,0.25365312]
[1633072664985,0.00120174,44224.0,44209.0,0.29418674]
[1633072665177,0.08034903,44224.0,44214.0,0.07437175]
[1633072665380,0.09795538,44226.0,44215.0,0.03394255]
[1633072665577,0.20058,44228.0,44215.0,0.03394255]
[1633072665578,0.20058,44228.0,44221.0,0.00127158]
[1633072665777,0.0004,44230.0,44223.0,0.05412866]
[1633072665975,0.0004,44230.0,44221.0,0.00127158]
[1633072665976,0.00457069,44236.0,44222.0,0.02441437]
[1633072666179,0.339333,44233.0,44224.0,0.016668]
[1633072666380,0.339333,44233.0,44225.0,0.03408835]
[1633072666381,0.07313757,44231.0,44225.0,0.03408835]
[1633072666577,0.228606,44230.0,44229.0,0.17422135]
[1633072666778,0.000132,44241.0,44229.0,0.25698815]
[1633072666987,0.000132,44241.0,44232.0,0.02317899]
[1633072667183,0.000132,44241.0,44233.0,0.01549515]
[1633072667386,0.000132,44241.0,44236.0,0.02418763]
[1633072667582,0.000132,44241.0,44238.0,0.0935308]
[1633072667782,0.000132,44241.0,44239.0,0.02804285]
[1633072667982,0.000132,44241.0,44239.0,0.05256676]
[1633072668181,0.000132,44241.0,44239.0,0.03589876]
[1633072668378,0.60889795,44250.0,44243.0,0.65]
[1633072668586,0.068397,44269.0,44267.0,0.22528824]
[1633072668783,0.068397,44269.0,44268.0,1.68023948]
[1633072668784,0.066797,44269.0,44268.0,1.68023948]
[1633072668992,0.2499,44276.0,44273.0,0.16918754]
[1633072669185,0.2499,44276.0,44274.0,0.206969]
[1633072669186,0.24010345,44276.0,44274.0,0.206969]
[1633072669380,0.24010345,44276.0,44275.0,0.06311671]
[1633072669589,0.31370945,44276.0,44275.0,0.05791671]
[1633072669780,0.31500635,44276.0,44275.0,0.05791671]
[1633072669987,0.2299029,44276.0,44274.0,0.034]
[1633072670180,0.11824116,44276.0,44275.0,0.04275319]
[1633072670381,0.00122185,44280.0,44275.0,0.04275319]
[1633072670582,0.00127062,44276.0,44275.0,0.04275319]
[1633072670783,0.0012899,44283.0,44275.0,0.0425328]
[1633072670981,0.22617075,44284.0,44274.0,0.034]
[1633072670982,0.08393204,44276.0,44274.0,0.034]
[1633072671183,0.00128124,44278.0,44267.0,0.22528824]
[1633072671385,0.22617075,44284.0,44269.0,0.00533238]
[1633072671582,0.35839389,44285.0,44281.0,0.13196254]
[1633072671848,0.228405,44284.0,44282.0,0.0005301]
[1633072672053,0.35839389,44285.0,44282.0,0.0005301]
[1633072672054,0.35839389,44285.0,44283.0,0.52474284]
[1633072672247,0.35839389,44285.0,44284.0,0.40217529]
[1633072672445,0.35839389,44285.0,44284.0,0.63966437]
[1633072672653,0.04,44289.0,44286.0,0.04871461]
[1633072672850,0.035,44289.0,44288.0,0.16722824]
[1633072673047,0.035,44289.0,44288.0,0.24357034]
[1633072673249,6e-05,44297.0,44289.0,0.00292]
[1633072673464,0.022172,44309.0,44289.0,0.00292]
[1633072673465,0.10454645,44321.0,44320.0,29.63089217]
[1633072673667,0.22834223,44352.0,44321.0,0.04417673]
[1633072673668,0.04,44329.0,44321.0,0.04417673]
[1633072673955,0.005,44346.0,44331.0,0.00121022]
[1633072674149,0.005,44346.0,44345.0,0.0188997]
[1633072674353,0.7677,44355.0,44336.0,0.0012694]
[1633072674354,0.19226597,44343.0,44337.0,0.25519408]
[1633072674549,0.19226597,44343.0,44342.0,0.00126644]
[1633072674756,0.19226597,44343.0,44336.0,0.0012694]
[1633072674757,0.18226597,44343.0,44336.0,0.0012694]
[1633072674957,0.18226597,44343.0,44339.0,0.0053403]
[1633072674958,0.08675362,44341.0,44339.0,0.0053403]
[1633072675152,0.08675362,44341.0,44332.0,0.07770921]
[1633072675153,0.47864581,44340.0,44332.0,0.5]
[1633072675360,0.05884653,44337.0,44332.0,0.0077131]
[1633072675551,0.00566937,44338.0,44322.0,0.15]
[1633072675852,0.32137015,44342.0,44332.0,0.03]
[1633072676050,0.14779607,44343.0,44337.0,0.04962161]
[1633072676051,0.28298659,44341.0,44337.0,0.04962161]
[1633072676251,0.194537,44341.0,44337.0,0.00544489]
[1633072676458,0.00983373,44339.0,44337.0,0.00565816]
[1633072676655,0.00983373,44339.0,44332.0,0.0298]
[1633072676656,0.194537,44338.0,44332.0,0.0298]
[1633072676853,0.27022356,44337.0,44332.0,0.0298]
[1633072677052,0.21843201,44333.0,44332.0,0.0298]
[1633072677252,0.42738864,44333.0,44328.0,0.00129302]
[1633072677452,0.00125409,44340.0,44333.0,0.00236663]
[1633072677654,0.14726597,44343.0,44334.0,0.00125029]
[1633072677857,0.14726597,44343.0,44339.0,0.00125037]
[1633072678056,0.14726597,44343.0,44340.0,0.27043491]
[1633072678253,0.02012788,44342.0,44341.0,0.10357592]
[1633072678453,0.14726597,44343.0,44342.0,0.03894977]
[1633072678651,0.16886029,44343.0,44342.0,0.23615951]
[1633072678956,0.0004,44356.0,44343.0,0.00650204]
[1633072679154,0.70981278,44355.0,44346.0,0.03655512]
[1633072679352,0.70981278,44355.0,44354.0,0.00128689]
[1633072679553,0.70981278,44355.0,44354.0,0.00328689]
[1633072679554,0.90434978,44355.0,44354.0,0.00328689]
[1633072679753,0.91479661,44355.0,44354.0,0.00926488]
[1633072679956,0.91479661,44355.0,44354.0,0.035]
[1633072680158,0.91479661,44355.0,44354.0,0.62090497]
[1633072680159,0.22391323,44355.0,44354.0,0.62090497]
[1633072680354,0.19651323,44355.0,44354.0,0.59763107]
[1633072680554,0.19651323,44355.0,44354.0,0.57201016]
[1633072680555,0.47879327,44355.0,44354.0,0.57201016]
[1633072680753,0.61963337,44354.0,44345.0,0.00711677]
[1633072680955,0.61963337,44354.0,44333.0,0.00236663]
[1633072680956,0.01701951,44352.0,44333.0,0.00236663]
[1633072681159,0.01701951,44352.0,44333.0,0.00956013]
[1633072681160,0.00129659,44339.0,44333.0,0.00956013]
[1633072681355,0.00129659,44339.0,44333.0,0.00236663]
[1633072681356,0.09654958,44338.0,44333.0,0.00236663]
[1633072681556,0.00129659,44339.0,44333.0,0.00236663]
[1633072681557,0.00125114,44334.0,44333.0,0.00236663]
[1633072681755,0.00125114,44334.0,44333.0,0.00216663]
[1633072681756,0.22109593,44334.0,44333.0,0.00216663]
[1633072681953,0.58177782,44334.0,44333.0,0.02556732]
[1633072682154,0.02922858,44334.0,44333.0,0.02556732]
[1633072682353,0.02869848,44334.0,44333.0,0.02556732]
[1633072682557,0.00123355,44334.0,44333.0,0.02556732]
[1633072682755,0.00123355,44334.0,44322.0,0.001]
[1633072682955,0.29302099,44348.0,44327.0,0.00124014]
[1633072683153,0.29302099,44348.0,44331.0,0.04150789]
[1633072683154,0.19207521,44348.0,44331.0,0.04150789]
[1633072683353,0.19207521,44348.0,44327.0,0.00124014]
[1633072683354,0.09761178,44337.0,44327.0,0.00613248]
[1633072683553,0.27557195,44348.0,44321.0,0.26472481]
[1633072683554,0.21132318,44347.0,44321.0,0.26472481]
[1633072683769,0.00121737,44349.0,44330.0,0.02514452]
[1633072683958,0.007,44337.0,44330.0,0.04581057]
[1633072684160,0.007,44337.0,44336.0,0.00254845]
[1633072684360,0.00615999,44337.0,44336.0,0.24465098]
[1633072684556,0.00615999,44337.0,44336.0,0.33979728]
[1633072684755,0.00615999,44337.0,44336.0,0.24853943]
[1633072685157,0.61757666,44354.0,44337.0,0.26139019]
[1633072685356,0.61757666,44354.0,44338.0,0.28006353]
[1633072685357,0.228219,44353.0,44338.0,0.28006353]
[1633072685559,0.12821906,44353.0,44340.0,0.01542384]
[1633072685758,0.12821906,44353.0,44342.0,0.00127616]
[1633072685956,0.079086,44353.0,44346.0,0.00570578]
[1633072686161,0.019,44353.0,44352.0,0.00121537]
[1633072686356,0.019,44353.0,44352.0,0.00101537]
[1633072686357,0.08368423,44353.0,44352.0,0.00101537]
[1633072686559,0.08368423,44353.0,44352.0,2.96360021]
[1633072686761,0.42359823,44353.0,44339.0,0.00122809]
[1633072686964,0.25395076,44342.0,44340.0,0.00104528]
[1633072687161,0.50719085,44341.0,44338.0,0.01922854]
[1633072687357,0.00977257,44339.0,44331.0,0.00120651]
[1633072687559,0.0005301,44338.0,44324.0,0.00122663]
[1633072687759,0.0005301,44338.0,44331.0,0.00123281]
[1633072687760,0.00691411,44337.0,44331.0,0.00123281]
[1633072687957,0.00691411,44337.0,44332.0,0.228184]
[1633072688161,0.00691411,44337.0,44336.0,0.00252127]
[1633072688360,0.20114469,44339.0,44338.0,0.04658145]
[1633072688559,0.20114469,44339.0,44336.0,0.0068427]
[1633072688560,0.061356,44339.0,44336.0,0.0068427]
[1633072688758,0.06746142,44338.0,44331.0,0.08551895]
[1633072688961,0.00737542,44338.0,44329.0,0.00127442]
[1633072689165,0.03,44341.0,44334.0,0.00129899]
[1633072689363,0.27046976,44342.0,44340.0,0.00126879]
[1633072689562,0.27046976,44342.0,44341.0,0.26736982]
[1633072689961,0.27046976,44342.0,44341.0,0.01905194]
[1633072689962,0.36442217,44342.0,44341.0,0.01905194]
[1633072690165,0.36442217,44342.0,44340.0,0.041]
[1633072690166,0.43259396,44342.0,44340.0,0.041]
[1633072690362,0.08222572,44341.0,44340.0,0.041]
[1633072690564,0.08275582,44341.0,44340.0,0.0408]
[1633072690764,0.27046976,44342.0,44340.0,0.0408]
[1633072690962,0.07445132,44342.0,44341.0,0.24331601]
[1633072691163,0.07445132,44342.0,44341.0,0.47150001]
[1633072691362,0.07445132,44342.0,44341.0,0.47279771]
[1633072691363,0.32578532,44342.0,44341.0,0.47279771]
[1633072691562,0.44106633,44342.0,44341.0,0.0228633]
[1633072691764,0.44106633,44342.0,44341.0,0.0014977]
[1633072691765,0.40347858,44342.0,44341.0,0.0014977]
[1633072691964,0.40347858,44342.0,44341.0,0.0244977]
[1633072691965,0.25028887,44342.0,44341.0,0.0244977]
[1633072692163,0.25028887,44342.0,44341.0,0.0242977]
[1633072692361,0.25156094,44342.0,44341.0,7.7e-06]
[1633072692564,0.25156094,44342.0,44327.0,0.00881189]
[1633072692565,0.15572538,44342.0,44327.0,0.00881189]
[1633072692867,0.15572538,44342.0,44322.0,0.0008]
[1633072692868,0.00551648,44341.0,44322.0,0.0008]
[1633072693062,0.00551648,44341.0,44325.0,0.00128893]
[1633072693063,0.15932096,44338.0,44325.0,0.00128893]
[1633072693263,0.00120769,44331.0,44325.0,0.00128893]
[1633072693461,0.12294549,44333.0,44326.0,0.07354053]
[1633072693662,0.24147832,44332.0,44328.0,0.00760204]
[1633072693863,0.0005301,44335.0,44328.0,0.00760204]
[1633072694065,0.00551648,44341.0,44329.0,0.23288036]
[1633072694263,0.00128713,44349.0,44335.0,0.00128445]
[1633072694462,0.00176881,44348.0,44334.0,0.01442885]
[1633072694666,0.09602482,44341.0,44334.0,0.00772303]
[1633072694865,0.16400224,44343.0,44338.0,0.00120592]
[1633072695062,0.00128713,44349.0,44341.0,0.00250677]
[1633072695263,0.00128713,44349.0,44342.0,0.00545688]
[1633072695467,0.2288071,44348.0,44340.0,0.00386151]
[1633072695666,0.00124915,44344.0,44327.0,0.00121618]
[1633072695865,0.00124915,44344.0,44327.0,0.00716137]
[1633072695866,0.01900521,44342.0,44327.0,0.00716137]
[1633072696068,0.1502887,44332.0,44320.0,28.89829215]
[1633072696270,0.30527239,44331.0,44328.0,0.00792112]
[1633072696467,0.30527239,44331.0,44330.0,0.22885424]
[1633072696665,0.00128813,44334.0,44330.0,0.22885424]
[1633072697065,0.00128813,44334.0,44330.0,0.00637252]
[1633072697266,0.01812918,44333.0,44330.0,0.00637252]
[1633072697465,0.0005301,44332.0,44330.0,0.00630568]
[1633072697665,0.01807798,44331.0,44326.0,0.09766146]
[1633072697865,0.0005301,44332.0,44330.0,0.00742317]
[1633072697866,0.37812408,44332.0,44330.0,0.00742317]
[1633072698072,0.29503038,44331.0,44320.0,28.89829215]
[1633072698271,0.00124741,44321.0,44320.0,28.89829215]
[1633072698473,0.01934741,44321.0,44320.0,28.89829215]
[1633072698667,0.05920689,44321.0,44320.0,28.839221]
[1633072698871,0.05867679,44321.0,44320.0,28.839221]
[1633072699073,0.00124741,44321.0,44320.0,28.839221]
[1633072699269,0.00124741,44321.0,44320.0,28.86655663]
[1633072699469,0.00124741,44321.0,44320.0,28.86635663]
[1633072699669,0.00124741,44321.0,44320.0,29.09461863]
[1633072699872,0.0005301,44328.0,44320.0,29.09461863]
[1633072700072,0.0005301,44328.0,44320.0,28.862021]
[1633072700073,0.02822249,44321.0,44320.0,28.862021]
[1633072700269,0.06727623,44321.0,44320.0,28.862021]
[1633072700472,0.2655605,44321.0,44320.0,28.861821]
[1633072700668,0.2655605,44321.0,44320.0,28.856821]
[1633072700669,0.50672929,44321.0,44320.0,28.856821]
[1633072700867,0.60120718,44321.0,44320.0,28.856821]
[1633072701068,0.62482929,44321.0,44320.0,28.856821]
[1633072701269,1.17482929,44321.0,44320.0,28.670421]
[1633072701472,1.12707784,44321.0,44320.0,1.50694909]
[1633072701671,0.00129715,44310.0,44305.0,0.000624]
[1633072701876,0.00129715,44310.0,44273.0,0.17596137]
[1633072701877,0.07578673,44307.0,44293.0,0.04052]
[1633072702075,0.02995905,44298.0,44293.0,0.04052]
[1633072702271,0.04744954,44297.0,44293.0,0.04032]
[1633072702476,0.246362,44296.0,44293.0,0.02852476]
[1633072702673,0.096362,44296.0,44294.0,0.16322466]
[1633072702877,0.0181,44305.0,44294.0,0.16322466]
[1633072702878,0.0181,44305.0,44302.0,0.09065659]
[1633072703074,0.1,44315.0,44307.0,0.338559]
[1633072703276,0.08817236,44320.0,44307.0,0.338559]
[1633072703277,0.0181,44314.0,44309.0,0.0012668]
[1633072703474,0.0181,44317.0,44313.0,0.00120319]
[1633072703673,8.84e-06,44322.0,44316.0,0.00120652]
[1633072703875,0.28973749,44331.0,44321.0,0.00109832]
[1633072704074,0.00127205,44333.0,44328.0,0.11643911]
[1633072704278,0.00127205,44333.0,44326.0,0.15809444]
[1633072704474,0.00127205,44333.0,44332.0,0.08018513]
[1633072704673,0.06975334,44333.0,44324.0,0.00366151]
[1633072704880,0.06975334,44333.0,44313.0,0.033]
[1633072704881,0.02776664,44330.0,44313.0,0.033]
[1633072705082,0.338629,44324.0,44313.0,0.032]
[1633072705276,0.338629,44324.0,44321.0,0.09519935]
[1633072705277,0.0186301,44323.0,44321.0,0.09519935]
[1633072705675,0.02129044,44327.0,44322.0,0.64822016]
[1633072705884,0.00020517,44329.0,44327.0,0.00121704]
[1633072706075,0.00020517,44329.0,44328.0,1.10127945]
[1633072706273,0.00020517,44329.0,44328.0,1.33983509]
[1633072706876,0.00020517,44329.0,44328.0,1.33835564]
[1633072707074,0.03668697,44329.0,44328.0,1.32945195]
[1633072707276,0.00020517,44329.0,44328.0,1.32945195]
[1633072707876,0.00020517,44329.0,44328.0,1.32925195]
[1633072707877,5.17e-06,44329.0,44328.0,1.32925195]
[1633072708177,5.17e-06,44329.0,44328.0,1.35025195]
[1633072708178,0.02700517,44329.0,44328.0,1.35025195]
[1633072708379,0.02700517,44329.0,44328.0,1.24222767]
[1633072708578,0.02700517,44329.0,44328.0,1.348963]
[1633072708774,0.02700517,44329.0,44328.0,1.1206]
[1633072708975,0.02700517,44329.0,44328.0,1.348963]
[1633072709178,0.02700517,44329.0,44328.0,1.348763]
[1633072709179,5.17e-06,44329.0,44328.0,1.348763]
[1633072709376,5.17e-06,44329.0,44328.0,1.41981484]
[1633072709577,5.17e-06,44329.0,44328.0,1.348763]
[1633072709776,5.17e-06,44329.0,44328.0,1.327763]
[1633072709976,5.17e-06,44329.0,44328.0,1.327563]
[1633072710179,0.02700517,44329.0,44328.0,1.350563]
[1633072710576,0.02700517,44329.0,44328.0,1.1222]
[1633072710876,0.02700517,44329.0,44328.0,1.1172]
[1633072711078,0.02700517,44329.0,44328.0,0.023]
[1633072711079,0.04460517,44329.0,44328.0,0.023]
[1633072711476,0.49660727,44329.0,44328.0,0.023]
[1633072711677,0.80434309,44329.0,44328.0,0.023]
[1633072711879,0.5701021,44329.0,44312.0,0.1807981]
[1633072712080,0.05391986,44325.0,44312.0,0.1807981]
[1633072712278,0.35056736,44324.0,44317.0,0.09338341]
[1633072712480,0.35056736,44324.0,44307.0,0.54847476]
[1633072712481,0.05230398,44322.0,44307.0,0.54847476]
[1633072712682,0.05230398,44322.0,44307.0,0.54718664]
[1633072712683,0.0666115,44318.0,44307.0,0.54718664]
[1633072712891,0.10392281,44324.0,44307.0,0.54718664]
[1633072712892,0.07338,44336.0,44307.0,0.54718664]
[1633072713079,0.50558073,44332.0,44309.0,0.001]
[1633072713278,2.69248683,44318.0,44309.0,0.31125462]
[1633072713480,0.338756,44314.0,44299.0,0.00122363]
[1633072713789,0.00339794,44323.0,44318.0,0.07498768]
[1633072713983,0.00629254,44328.0,44315.0,0.12008798]
[1633072714179,0.00629254,44328.0,44319.0,0.1766716]
[1633072714379,0.00629254,44328.0,44315.0,0.00129798]
[1633072714580,0.00629254,44328.0,44311.0,0.0005301]
[1633072714581,0.338677,44318.0,44307.0,0.22574818]
[1633072714776,0.338677,44318.0,44306.0,0.04778688]
[1633072714983,0.338677,44318.0,44295.0,0.0005301]
[1633072714984,0.09743681,44313.0,44305.0,0.00121865]
[1633072715180,0.00503893,44310.0,44304.0,0.07844491]
[1633072715581,0.0181,44313.0,44304.0,0.05414545]
[1633072715780,0.338715,44312.0,44304.0,0.20784347]
[1633072715977,0.33888326,44312.0,44304.0,0.05394545]
[1633072716178,0.33888326,44312.0,44304.0,0.08094545]
[1633072716376,0.33888326,44312.0,44306.0,0.24311171]
[1633072716577,0.33888326,44312.0,44307.0,0.05398033]
[1633072716777,0.00016826,44312.0,44309.0,0.12432214]
[1633072716982,0.00016826,44312.0,44308.0,0.05902312]
[1633072717578,0.00016826,44312.0,44307.0,0.01300456]
[1633072717778,0.225784,44315.0,44308.0,0.8]
[1633072717980,0.225784,44315.0,44309.0,0.05846961]
[1633072718180,0.225784,44315.0,44313.0,0.1915443]
[1633072718380,0.225784,44315.0,44314.0,0.06173502]
[1633072718578,0.0181,44319.0,44314.0,0.06173502]
[1633072718780,0.338633,44318.0,44314.0,0.06173502]
[1633072718978,0.338633,44318.0,44313.0,0.1913443]
[1633072719179,0.338633,44318.0,44313.0,0.1911443]
[1633072719577,0.451578,44320.0,44308.0,0.90794379]
[1633072719578,0.11,44315.0,44308.0,0.90794379]
[1633072719782,0.338667,44313.0,44308.0,0.90794379]
[1633072719984,0.11,44315.0,44309.0,0.06102513]
[1633072720181,0.14,44315.0,44309.0,0.06102513]
[1633072720582,0.14,44315.0,44313.0,0.17993222]
[1633072720784,0.14,44315.0,44314.0,1.11142745]
[1633072720984,0.13947686,44315.0,44314.0,0.06142745]
[1633072721184,0.13947686,44315.0,44311.0,0.24778762]
[1633072721387,0.00629254,44328.0,44317.0,0.07093172]
[1633072721388,0.45270838,44327.0,44317.0,0.07093172]
[1633072721689,0.00629254,44328.0,44325.0,0.00106485]
[1633072721883,0.00629254,44328.0,44326.0,0.03713857]
[1633072721884,3e-06,44327.0,44326.0,0.03713857]
[1633072722090,0.3348,44332.0,44327.0,0.0012796]
[1633072722286,0.3348,44332.0,44331.0,0.00123525]
[1633072722487,0.66726118,44350.0,44341.0,0.45]
[1633072722760,0.226109,44357.0,44354.0,0.12124069]
[1633072722960,0.0004,44357.0,44354.0,0.72814982]
[1633072723157,0.0004,44357.0,44354.0,0.93110768]
[1633072723357,0.0004,44357.0,44354.0,0.53431899]
[1633072723555,0.0004,44357.0,44354.0,0.61992713]
[1633072723754,0.0004,44357.0,44354.0,0.70044363]
[1633072723956,0.0004,44357.0,44354.0,0.66972713]
[1633072724157,0.50106654,44359.0,44355.0,0.94478274]
[1633072724158,0.19426654,44359.0,44355.0,0.94478274]
[1633072724357,7.16501726,44355.0,44354.0,0.66260814]
[1633072724558,7.16501726,44355.0,44354.0,0.66381268]
[1633072724754,7.16501726,44355.0,44354.0,0.26556989]
[1633072724755,7.13501726,44355.0,44354.0,0.26556989]
[1633072725062,7.13501726,44355.0,44354.0,0.07976175]
[1633072725063,7.36311826,44355.0,44354.0,0.07976175]
[1633072725263,7.36311826,44355.0,44354.0,0.0268]
[1633072725264,7.71369661,44355.0,44354.0,0.0268]
[1633072725860,7.71369661,44355.0,44345.0,0.25519171]
[1633072726061,7.71369661,44355.0,44345.0,0.32873426]
[1633072726062,0.228101,44354.0,44345.0,0.32873426]
[1633072726256,0.01768971,44351.0,44345.0,0.25499171]
[1633072726459,0.01768971,44351.0,44345.0,0.06015629]
[1633072726460,0.228101,44350.0,44345.0,0.06015629]
[1633072726658,0.223101,44350.0,44345.0,0.06015629]
[1633072726863,0.01714547,44348.0,44345.0,0.06015629]
[1633072727064,0.223403,44347.0,44345.0,0.05995629]
[1633072727266,0.01714547,44348.0,44345.0,0.02995629]
[1633072727267,0.54937765,44346.0,44345.0,0.02995629]
[1633072727461,0.53168432,44346.0,44343.0,0.7244528]
[1633072727661,0.25061421,44344.0,44343.0,0.7242528]
[1633072727863,0.26871421,44344.0,44343.0,0.7242528]
[1633072728258,0.07931121,44344.0,44343.0,0.7242528]
[1633072728464,0.17254478,44344.0,44343.0,0.7242528]
[1633072728861,0.52350741,44344.0,44343.0,0.7242528]
[1633072729060,0.74691041,44344.0,44343.0,0.7240528]
[1633072729263,0.28461421,44344.0,44343.0,1.3240528]
[1633072729467,0.034,44344.0,44343.0,1.3704472]
[1633072729663,0.03697964,44344.0,44343.0,1.3704472]
[1633072729858,0.00297964,44344.0,44343.0,1.3240528]
[1633072730059,0.00297964,44344.0,44343.0,1.3238528]
[1633072730262,0.03397964,44344.0,44343.0,2.1209948]
[1633072730469,9.64e-06,44344.0,44343.0,2.17944363]
[1633072730660,9.64e-06,44344.0,44343.0,2.17997373]
[1633072730861,0.00019536,44353.0,44343.0,2.42997373]
[1633072731064,0.00019536,44353.0,44352.0,1.05129023]
[1633072731260,0.00019536,44353.0,44352.0,1.48275472]
[1633072731467,0.00019536,44353.0,44352.0,1.59593736]
[1633072731867,5.6927,44355.0,44345.0,0.00787294]
[1633072731868,3.78785898,44355.0,44345.0,0.00787294]
[1633072732064,3.78785898,44355.0,44343.0,0.7428528]
[1633072732065,3.78785898,44355.0,44343.0,0.73031405]
[1633072732264,0.338491,44351.0,44343.0,0.73031405]
[1633072732465,0.027,44353.0,44348.0,0.00121067]
[1633072732466,0.52215053,44350.0,44348.0,0.00121067]
[1633072732663,0.223403,44350.0,44343.0,0.73031405]
[1633072732860,0.29672671,44349.0,44343.0,0.73031405]
[1633072733062,0.29672671,44349.0,44343.0,0.7238528]
[1633072733063,0.223403,44345.0,44343.0,0.7238528]
[1633072733261,0.34213105,44344.0,44343.0,0.7236528]
[1633072733464,0.223403,44343.0,44334.0,0.00504208]
[1633072733666,0.00753047,44339.0,44334.0,0.00504208]
[1633072733865,0.00753047,44339.0,44335.0,0.45789438]
[1633072734064,0.31284176,44346.0,44338.0,0.00129634]
[1633072734263,0.0996697,44349.0,44345.0,0.00127177]
[1633072734462,0.223403,44348.0,44345.0,0.00914099]
[1633072734861,0.223403,44348.0,44345.0,0.00766922]
[1633072735068,0.223403,44348.0,44341.0,0.25303625]
[1633072735069,0.561829,44346.0,44341.0,0.05]
[1633072735263,0.31833478,44342.0,44334.0,0.04532771]
[1633072735464,0.225681,44340.0,44334.0,0.04532771]
[1633072735665,0.225681,44340.0,44335.0,0.12266976]
[1633072735864,0.225681,44340.0,44335.0,0.12944959]
[1633072736063,0.0181,44342.0,44336.0,0.27773838]
[1633072736266,0.026,44340.0,44336.0,0.05557524]
[1633072736463,0.026,44340.0,44339.0,0.60941423]
[1633072736662,0.026,44340.0,44339.0,0.40570625]
[1633072737065,0.02616236,44340.0,44339.0,0.41925623]
[1633072737263,0.02616236,44340.0,44339.0,0.45570625]
[1633072737466,0.02616236,44340.0,44339.0,0.00570625]
[1633072737666,0.02616236,44340.0,44327.0,0.00121397]
[1633072737667,0.00817953,44340.0,44333.0,0.21372722]